[Event "Titled Tuesday Blitz March 28 Early 2023"]
[White "Akhmetov, Ayan"]
[Black "Shvedova, Alexandra"]
[WhiteFideId "13703706"]
[BlackFideId "54154782"]
[WhiteElo "2398"]
[BlackElo "2057"]
[Result "1-0"]
[Round "11"]
[TimeControl "180+2"]
[Date "2023.03.28"]
[WhiteClock "0:00:06"]
[BlackClock "0:00:16"]

1. Nf3 {[%clk 0:02:56]}  Nf6 {[%clk 0:03:00]} 2. c4 {[%clk 0:02:55]}  e6 {[%clk 0:03:00]} 3. g3 {[%clk 0:02:56]}  d5 {[%clk 0:03:00]} 4. Bg2 {[%clk 0:02:56]}  dxc4 {[%clk 0:03:00]} 5. Qa4+ {[%clk 0:02:56]}  Nbd7 {[%clk 0:02:59]} 6. Qxc4 {[%clk 0:02:56]}  a6 {[%clk 0:03:00]} 7. Qc2 {[%clk 0:02:57]}  c5 {[%clk 0:02:59]} 8. O-O {[%clk 0:02:56]}  b5 {[%clk 0:02:56]} 9. Nd4 {[%clk 0:02:55]}  Nd5 {[%clk 0:02:52]} 10. Nf5 {[%clk 0:02:26]}  Bb7 {[%clk 0:02:48]} 11. Ne3 {[%clk 0:02:16]}  Nxe3 {[%clk 0:02:45]} 12. dxe3 {[%clk 0:02:17]}  Bxg2 {[%clk 0:02:45]} 13. Kxg2 {[%clk 0:02:18]}  Be7 {[%clk 0:02:44]} 14. Rd1 {[%clk 0:02:13]}  Qc7 {[%clk 0:02:43]} 15. Nc3 {[%clk 0:02:12]}  O-O {[%clk 0:02:43]} 16. e4 {[%clk 0:02:07]}  Nf6 {[%clk 0:02:39]} 17. f3 {[%clk 0:02:06]}  Rfd8 {[%clk 0:02:37]} 18. Be3 {[%clk 0:02:04]}  h5 {[%clk 0:02:31]} 19. a4 {[%clk 0:02:03]}  b4 {[%clk 0:02:30]} 20. Nb1 {[%clk 0:02:01]}  h4 {[%clk 0:02:28]} 21. Nd2 {[%clk 0:01:55]}  Nh5 {[%clk 0:02:24]} 22. Nf1 {[%clk 0:01:44]}  hxg3 {[%clk 0:02:08]} 23. hxg3 {[%clk 0:01:45]}  Bd6 {[%clk 0:02:08]} 24. f4 {[%clk 0:01:38]}  e5 {[%clk 0:02:04]} 25. f5 {[%clk 0:01:34]}  Be7 {[%clk 0:02:01]} 26. Qc4 {[%clk 0:01:26]}  Qc6 {[%clk 0:01:54]} 27. g4 {[%clk 0:01:06]}  Nf4+ {[%clk 0:01:33]} 28. Bxf4 {[%clk 0:01:04]}  exf4 {[%clk 0:01:34]} 29. Nh2 {[%clk 0:00:57]}  Bf6 {[%clk 0:01:31]} 30. Nf3 {[%clk 0:00:52]}  Bxb2 {[%clk 0:01:29]} 31. Rxd8+ {[%clk 0:00:48]}  Rxd8 {[%clk 0:01:28]} 32. Rb1 {[%clk 0:00:49]}  Bd4 {[%clk 0:01:25]} 33. g5 {[%clk 0:00:49]}  Qxe4 {[%clk 0:01:24]} 34. g6 {[%clk 0:00:19]}  Qxf5 {[%clk 0:01:24]} 35. gxf7+ {[%clk 0:00:18]}  Qxf7 {[%clk 0:01:24]} 36. Qxa6 {[%clk 0:00:19]}  Qd5 {[%clk 0:01:12]} 37. Rh1 {[%clk 0:00:18]}  Rd6 {[%clk 0:00:54]} 38. Qc8+ {[%clk 0:00:17]}  Kf7 {[%clk 0:00:54]} 39. Rh4 {[%clk 0:00:13]}  Rg6+ {[%clk 0:00:49]} 40. Kf1 {[%clk 0:00:13]}  Rf6 {[%clk 0:00:40]} 41. Rh8 {[%clk 0:00:10]}  Kg6 {[%clk 0:00:20]} 42. Qe8+ {[%clk 0:00:06]}  Qf7 {[%clk 0:00:18]} 43. Qe4+ {[%clk 0:00:04]}  Rf5 {[%clk 0:00:18]} 44. Nh4+ {[%clk 0:00:04]}  Kg5 {[%clk 0:00:18]} 45. Nxf5 {[%clk 0:00:05]}  Qxf5 {[%clk 0:00:17]} 46. Rh5+ {[%clk 0:00:04]}  Kxh5 {[%clk 0:00:17]} 47. Qxf5+ {[%clk 0:00:05]}  Kh4 {[%clk 0:00:18]} 48. Qxf4+ {[%clk 0:00:05]}  Kh3 {[%clk 0:00:18]} 49. a5 {[%clk 0:00:04]}  b3 {[%clk 0:00:17]} 50. Qf3+ {[%clk 0:00:05]}  Kh2 {[%clk 0:00:17]} 51. Qxb3 {[%clk 0:00:05]}  g5 {[%clk 0:00:16]} 52. Qf3 {[%clk 0:00:05]}  g4 {[%clk 0:00:16]} 53. Qg2# {[%clk 0:00:06]} 1-0


[Site "https://www.chess.com"]

[Event "Titled Tuesday Blitz March 28 Early 2023"]
[White "Melikhov, Evgeny V."]
[Black "Kadam, Om Manish"]
[WhiteFideId "4122046"]
[BlackFideId "45076294"]
[WhiteElo "2158"]
[BlackElo "2221"]
[Result "1-0"]
[Round "11"]
[TimeControl "180+2"]
[Date "2023.03.28"]
[WhiteClock "0:00:05"]
[BlackClock "0:00:12"]

1. d4 {[%clk 0:03:00]}  Nf6 {[%clk 0:03:00]} 2. c4 {[%clk 0:03:01]}  e6 {[%clk 0:02:59]} 3. Nc3 {[%clk 0:03:01]}  d5 {[%clk 0:02:59]} 4. cxd5 {[%clk 0:03:01]}  exd5 {[%clk 0:03:00]} 5. Bg5 {[%clk 0:03:00]}  Be7 {[%clk 0:03:00]} 6. e3 {[%clk 0:03:00]}  O-O {[%clk 0:03:01]} 7. Bd3 {[%clk 0:03:01]}  c6 {[%clk 0:03:01]} 8. Qc2 {[%clk 0:03:01]}  Nbd7 {[%clk 0:03:02]} 9. Nf3 {[%clk 0:03:01]}  Re8 {[%clk 0:03:02]} 10. O-O {[%clk 0:03:01]}  Nf8 {[%clk 0:03:03]} 11. h3 {[%clk 0:03:02]}  g6 {[%clk 0:03:04]} 12. Ne5 {[%clk 0:02:58]}  N6d7 {[%clk 0:03:02]} 13. Bxe7 {[%clk 0:02:32]}  Qxe7 {[%clk 0:03:02]} 14. Nxd7 {[%clk 0:02:32]}  Bxd7 {[%clk 0:03:01]} 15. b4 {[%clk 0:02:27]}  Ne6 {[%clk 0:02:58]} 16. b5 {[%clk 0:02:24]}  Ng5 {[%clk 0:02:58]} 17. bxc6 {[%clk 0:02:17]}  bxc6 {[%clk 0:02:56]} 18. Ne2 {[%clk 0:02:14]}  h5 {[%clk 0:02:41]} 19. Nf4 {[%clk 0:02:13]}  Qf6 {[%clk 0:02:41]} 20. Rab1 {[%clk 0:02:08]}  Rab8 {[%clk 0:02:40]} 21. Rxb8 {[%clk 0:02:06]}  Rxb8 {[%clk 0:02:41]} 22. Rb1 {[%clk 0:02:06]}  Rxb1+ {[%clk 0:02:25]} 23. Qxb1 {[%clk 0:02:06]}  Qd8 {[%clk 0:02:25]} 24. Qb7 {[%clk 0:01:58]}  a5 {[%clk 0:02:25]} 25. h4 {[%clk 0:01:40]}  Ne4 {[%clk 0:02:25]} 26. Bxe4 {[%clk 0:01:39]}  dxe4 {[%clk 0:02:26]} 27. d5 {[%clk 0:01:27]}  cxd5 {[%clk 0:02:21]} 28. Qxd5 {[%clk 0:01:27]}  a4 {[%clk 0:02:12]} 29. Nxg6 {[%clk 0:01:15]}  Qc7 {[%clk 0:01:46]} 30. Nf4 {[%clk 0:01:12]}  a3 {[%clk 0:01:22]} 31. Qxh5 {[%clk 0:01:09]}  Qc2 {[%clk 0:01:00]} 32. Qg5+ {[%clk 0:01:03]}  Kf8 {[%clk 0:00:53]} 33. Qd8+ {[%clk 0:01:02]}  Be8 {[%clk 0:00:54]} 34. Qd6+ {[%clk 0:01:02]}  Kg8 {[%clk 0:00:54]} 35. Qxa3 {[%clk 0:01:02]}  Qd1+ {[%clk 0:00:47]} 36. Kh2 {[%clk 0:01:01]}  Qc2 {[%clk 0:00:48]} 37. Qe7 {[%clk 0:00:57]}  Bc6 {[%clk 0:00:48]} 38. Nh5 {[%clk 0:00:51]}  Qxf2 {[%clk 0:00:44]} 39. Qf6 {[%clk 0:00:49]}  Qxf6 {[%clk 0:00:42]} 40. Nxf6+ {[%clk 0:00:49]}  Kg7 {[%clk 0:00:42]} 41. Ng4 {[%clk 0:00:49]}  Kg6 {[%clk 0:00:43]} 42. Nf2 {[%clk 0:00:47]}  f5 {[%clk 0:00:42]} 43. Kg3 {[%clk 0:00:45]}  Kh5 {[%clk 0:00:38]} 44. Kf4 {[%clk 0:00:45]}  Kxh4 {[%clk 0:00:39]} 45. Kxf5 {[%clk 0:00:45]}  Kg3 {[%clk 0:00:40]} 46. Nxe4+ {[%clk 0:00:45]}  Kxg2 {[%clk 0:00:40]} 47. Nc5 {[%clk 0:00:44]}  Kf3 {[%clk 0:00:35]} 48. e4 {[%clk 0:00:44]}  Ke3 {[%clk 0:00:35]} 49. e5 {[%clk 0:00:44]}  Kd4 {[%clk 0:00:36]} 50. Nb3+ {[%clk 0:00:37]}  Kc3 {[%clk 0:00:27]} 51. e6 {[%clk 0:00:25]}  Kb2 {[%clk 0:00:20]} 52. Nc5 {[%clk 0:00:20]}  Kxa2 {[%clk 0:00:20]} 53. e7 {[%clk 0:00:18]}  Ka3 {[%clk 0:00:20]} 54. Ke6 {[%clk 0:00:17]}  Be8 {[%clk 0:00:21]} 55. Nd7 {[%clk 0:00:10]}  Kb4 {[%clk 0:00:21]} 56. Nf6 {[%clk 0:00:10]}  Bg6 {[%clk 0:00:22]} 57. Nd5+ {[%clk 0:00:07]}  Kc5 {[%clk 0:00:22]} 58. Nc7 {[%clk 0:00:06]}  Kc6 {[%clk 0:00:21]} 59. Nd5 {[%clk 0:00:05]}  Be8 {[%clk 0:00:20]} 60. Nf6 {[%clk 0:00:05]}  Bg6 {[%clk 0:00:21]} 61. Ng8 {[%clk 0:00:05]}  Be8 {[%clk 0:00:18]} 62. Nh6 {[%clk 0:00:04]}  Kc7 {[%clk 0:00:19]} 63. Nf7 {[%clk 0:00:05]}  Kc6 {[%clk 0:00:19]} 64. Nd6 {[%clk 0:00:05]}  Bg6 {[%clk 0:00:19]} 65. Nf7 {[%clk 0:00:05]}  Bxf7+ {[%clk 0:00:12]} 66. Kxf7 {[%clk 0:00:05]} 1-0


[Site "https://www.chess.com"]

[Event "Titled Tuesday Blitz March 28 Early 2023"]
[White "Seletsky, Grigory"]
[Black "Degenbaev, Aziz"]
[WhiteFideId "14112191"]
[BlackFideId "13802640"]
[WhiteElo "2490"]
[BlackElo "2152"]
[Result "0-1"]
[Round "11"]
[TimeControl "180+2"]
[Date "2023.03.28"]
[WhiteClock "0:00:02"]
[BlackClock "0:00:14"]

1. e4 {[%clk 0:02:58]}  c5 {[%clk 0:02:58]} 2. Nc3 {[%clk 0:02:58]}  d6 {[%clk 0:02:58]} 3. f4 {[%clk 0:02:55]}  g6 {[%clk 0:02:53]} 4. Nf3 {[%clk 0:02:56]}  Bg7 {[%clk 0:02:54]} 5. Bc4 {[%clk 0:02:56]}  e6 {[%clk 0:02:54]} 6. O-O {[%clk 0:02:56]}  Ne7 {[%clk 0:02:54]} 7. Qe1 {[%clk 0:02:56]}  O-O {[%clk 0:02:52]} 8. d3 {[%clk 0:02:55]}  Nbc6 {[%clk 0:02:53]} 9. f5 {[%clk 0:02:54]}  gxf5 {[%clk 0:02:53]} 10. Qh4 {[%clk 0:02:54]}  Ng6 {[%clk 0:02:52]} 11. Qh5 {[%clk 0:02:53]}  fxe4 {[%clk 0:02:51]} 12. dxe4 {[%clk 0:02:49]}  Nd4 {[%clk 0:02:45]} 13. Ng5 {[%clk 0:02:42]}  h6 {[%clk 0:02:44]} 14. Nxf7 {[%clk 0:02:14]}  Rxf7 {[%clk 0:02:42]} 15. Rxf7 {[%clk 0:02:07]}  Kxf7 {[%clk 0:02:40]} 16. Bxh6 {[%clk 0:02:07]}  Qh8 {[%clk 0:02:04]} 17. Rf1+ {[%clk 0:02:05]}  Kg8 {[%clk 0:02:03]} 18. Qxg6 {[%clk 0:01:57]}  Qxh6 {[%clk 0:02:03]} 19. Qe8+ {[%clk 0:01:52]}  Kh7 {[%clk 0:02:03]} 20. e5 {[%clk 0:01:39]}  Qe3+ {[%clk 0:00:56]} 21. Kh1 {[%clk 0:01:35]}  Qxe5 {[%clk 0:00:57]} 22. Bd3+ {[%clk 0:01:21]}  Nf5 {[%clk 0:00:57]} 23. g4 {[%clk 0:01:05]}  b5 {[%clk 0:00:25]} 24. Qh5+ {[%clk 0:00:36]}  Bh6 {[%clk 0:00:22]} 25. Qf7+ {[%clk 0:00:28]}  Qg7 {[%clk 0:00:22]} 26. Qxg7+ {[%clk 0:00:22]}  Bxg7 {[%clk 0:00:23]} 27. gxf5 {[%clk 0:00:22]}  Bb7+ {[%clk 0:00:23]} 28. Be4 {[%clk 0:00:19]}  d5 {[%clk 0:00:20]} 29. Bg2 {[%clk 0:00:18]}  Bxc3 {[%clk 0:00:18]} 30. bxc3 {[%clk 0:00:17]}  e5 {[%clk 0:00:19]} 31. Rd1 {[%clk 0:00:13]}  e4 {[%clk 0:00:15]} 32. Bxe4 {[%clk 0:00:12]}  dxe4 {[%clk 0:00:14]} 33. Rd7+ {[%clk 0:00:12]}  Kh6 {[%clk 0:00:15]} 34. Rxb7 {[%clk 0:00:12]}  a6 {[%clk 0:00:15]} 35. Kg2 {[%clk 0:00:12]}  Kg5 {[%clk 0:00:15]} 36. Kf2 {[%clk 0:00:12]}  Kxf5 {[%clk 0:00:15]} 37. Rc7 {[%clk 0:00:10]}  c4 {[%clk 0:00:14]} 38. Ke3 {[%clk 0:00:09]}  Rh8 {[%clk 0:00:13]} 39. Rc5+ {[%clk 0:00:08]}  Ke6 {[%clk 0:00:13]} 40. a4 {[%clk 0:00:07]}  Rxh2 {[%clk 0:00:12]} 41. Kxe4 {[%clk 0:00:05]}  Re2+ {[%clk 0:00:08]} 42. Kd4 {[%clk 0:00:03]}  Rd2+ {[%clk 0:00:08]} 43. Ke4 {[%clk 0:00:03]}  Rxc2 {[%clk 0:00:08]} 44. axb5 {[%clk 0:00:01]}  axb5 {[%clk 0:00:05]} 45. Rxb5 {[%clk 0:00:02]}  Rxc3 {[%clk 0:00:04]} 46. Kd4 {[%clk 0:00:03]}  Rc1 {[%clk 0:00:03]} 47. Rc5 {[%clk 0:00:03]}  Kd6 {[%clk 0:00:04]} 48. Rxc4 {[%clk 0:00:03]}  Rh1 {[%clk 0:00:05]} 49. Kc3 {[%clk 0:00:03]}  Rh3+ {[%clk 0:00:05]} 50. Kb4 {[%clk 0:00:04]}  Kd5 {[%clk 0:00:06]} 51. Rc5+ {[%clk 0:00:04]}  Kd4 {[%clk 0:00:07]} 52. Rc4+ {[%clk 0:00:05]}  Kd5 {[%clk 0:00:07]} 53. Rc5+ {[%clk 0:00:05]}  Kd6 {[%clk 0:00:08]} 54. Rc4 {[%clk 0:00:06]}  Rh1 {[%clk 0:00:08]} 55. Rd4+ {[%clk 0:00:06]}  Kc6 {[%clk 0:00:09]} 56. Rc4+ {[%clk 0:00:05]}  Kb6 {[%clk 0:00:08]} 57. Rd4 {[%clk 0:00:06]}  Rb1+ {[%clk 0:00:09]} 58. Kc3 {[%clk 0:00:05]}  Ra1 {[%clk 0:00:09]} 59. Rb4+ {[%clk 0:00:06]}  Kc5 {[%clk 0:00:10]} 60. Rb2 {[%clk 0:00:06]}  Ra3+ {[%clk 0:00:09]} 61. Kc2 {[%clk 0:00:06]}  Kc4 {[%clk 0:00:09]} 62. Rb8 {[%clk 0:00:03]}  Ra2+ {[%clk 0:00:09]} 63. Kb1 {[%clk 0:00:03]}  Rg2 {[%clk 0:00:09]} 64. Rc8+ {[%clk 0:00:03]}  Kb3 {[%clk 0:00:09]} 65. Rb8+ {[%clk 0:00:03]}  Kc3 {[%clk 0:00:10]} 66. Rc8+ {[%clk 0:00:03]}  Kd3 {[%clk 0:00:11]} 67. Rd8+ {[%clk 0:00:03]}  Ke2 {[%clk 0:00:11]} 68. Re8+ {[%clk 0:00:03]}  Kf1 {[%clk 0:00:11]} 69. Rd8 {[%clk 0:00:02]}  Re2 {[%clk 0:00:11]} 70. Rd7 {[%clk 0:00:02]}  Ke1 {[%clk 0:00:11]} 71. Rd8 {[%clk 0:00:03]}  Re6 {[%clk 0:00:12]} 72. Rd7 {[%clk 0:00:02]}  Ke2 {[%clk 0:00:12]} 73. Rd8 {[%clk 0:00:03]}  Rb6+ {[%clk 0:00:13]} 74. Kc2 {[%clk 0:00:02]}  Rc6+ {[%clk 0:00:13]} 75. Kb3 {[%clk 0:00:02]}  Ke3 {[%clk 0:00:14]} 0-1


[Site "https://www.chess.com"]

[Event "Titled Tuesday Blitz March 28 Early 2023"]
[White "Lopez, Nelson M, Ii"]
[Black "Rom, Jasper"]
[WhiteFideId "2027895"]
[BlackFideId "2023733"]
[WhiteElo "2387"]
[BlackElo "2233"]
[Result "0-1"]
[Round "11"]
[TimeControl "180+2"]
[Date "2023.03.28"]
[WhiteClock "0:00:04"]
[BlackClock "0:00:07"]

1. e4 {[%clk 0:03:00]}  e6 {[%clk 0:02:59]} 2. d4 {[%clk 0:02:57]}  d5 {[%clk 0:02:59]} 3. Nc3 {[%clk 0:02:58]}  Nf6 {[%clk 0:02:58]} 4. Bg5 {[%clk 0:02:58]}  Bb4 {[%clk 0:02:55]} 5. e5 {[%clk 0:02:57]}  h6 {[%clk 0:02:56]} 6. Bh4 {[%clk 0:02:50]}  g5 {[%clk 0:02:55]} 7. exf6 {[%clk 0:02:50]}  gxh4 {[%clk 0:02:55]} 8. Qf3 {[%clk 0:02:47]}  Nd7 {[%clk 0:02:52]} 9. Bd3 {[%clk 0:02:42]}  Qxf6 {[%clk 0:02:52]} 10. O-O-O {[%clk 0:02:30]}  Rg8 {[%clk 0:02:31]} 11. g3 {[%clk 0:02:19]}  c6 {[%clk 0:02:20]} 12. a3 {[%clk 0:02:14]}  Bxc3 {[%clk 0:02:09]} 13. bxc3 {[%clk 0:02:15]}  e5 {[%clk 0:02:09]} 14. dxe5 {[%clk 0:02:13]}  Qxe5 {[%clk 0:02:01]} 15. Ne2 {[%clk 0:02:07]}  Qf6 {[%clk 0:01:54]} 16. Nf4 {[%clk 0:02:04]}  Ne5 {[%clk 0:01:47]} 17. Rde1 {[%clk 0:02:00]}  Be6 {[%clk 0:01:43]} 18. Qh5 {[%clk 0:01:39]}  Nxd3+ {[%clk 0:01:39]} 19. Nxd3 {[%clk 0:01:33]}  O-O-O {[%clk 0:01:34]} 20. Kb2 {[%clk 0:01:16]}  d4 {[%clk 0:01:23]} 21. Qa5 {[%clk 0:01:03]}  dxc3+ {[%clk 0:01:22]} 22. Ka1 {[%clk 0:01:04]}  Qd4 {[%clk 0:01:10]} 23. Nb4 {[%clk 0:00:41]}  c5 {[%clk 0:00:45]} 24. Nd3 {[%clk 0:00:20]}  b6 {[%clk 0:00:29]} 25. Qxa7 {[%clk 0:00:20]}  Qd5 {[%clk 0:00:28]} 26. Qa6+ {[%clk 0:00:16]}  Kc7 {[%clk 0:00:25]} 27. Qa7+ {[%clk 0:00:14]}  Kc8 {[%clk 0:00:17]} 28. Qa6+ {[%clk 0:00:14]}  Kc7 {[%clk 0:00:17]} 29. Qa7+ {[%clk 0:00:15]}  Qb7 {[%clk 0:00:17]} 30. Qxb7+ {[%clk 0:00:15]}  Kxb7 {[%clk 0:00:18]} 31. Rxe6 {[%clk 0:00:07]}  fxe6 {[%clk 0:00:18]} 32. Ka2 {[%clk 0:00:08]}  c4 {[%clk 0:00:16]} 33. Nf4 {[%clk 0:00:08]}  Rd2 {[%clk 0:00:16]} 34. Rc1 {[%clk 0:00:07]}  Rxf2 {[%clk 0:00:15]} 35. Nxe6 {[%clk 0:00:07]}  hxg3 {[%clk 0:00:14]} 36. hxg3 {[%clk 0:00:07]}  Rxg3 {[%clk 0:00:15]} 37. Nd4 {[%clk 0:00:08]}  Rgg2 {[%clk 0:00:13]} 38. a4 {[%clk 0:00:08]}  h5 {[%clk 0:00:13]} 39. Ka3 {[%clk 0:00:08]}  h4 {[%clk 0:00:13]} 40. Rh1 {[%clk 0:00:07]}  Rh2 {[%clk 0:00:11]} 41. Rg1 {[%clk 0:00:08]}  Rfg2 {[%clk 0:00:10]} 42. Rf1 {[%clk 0:00:08]}  Rf2 {[%clk 0:00:10]} 43. Rg1 {[%clk 0:00:09]}  h3 {[%clk 0:00:11]} 44. Rg7+ {[%clk 0:00:09]}  Kc8 {[%clk 0:00:10]} 45. Kb4 {[%clk 0:00:09]}  Rhg2 {[%clk 0:00:10]} 46. Rh7 {[%clk 0:00:09]}  h2 {[%clk 0:00:10]} 47. Nc6 {[%clk 0:00:10]}  Rg1 {[%clk 0:00:09]} 48. Kb5 {[%clk 0:00:10]}  h1=Q {[%clk 0:00:09]} 49. Ra7 {[%clk 0:00:04]}  Rb1+ {[%clk 0:00:08]} 50. Ka6 {[%clk 0:00:04]}  Qxc6 {[%clk 0:00:07]} 51. a5 {[%clk 0:00:04]}  Qb5# {[%clk 0:00:07]} 0-1


[Site "https://www.chess.com"]

[Event "Titled Tuesday Blitz March 28 Early 2023"]
[White "Avazkhonov, Alikhon"]
[Black "ArchibaldCerveza29"]
[WhiteFideId "14208504"]
[WhiteElo "1739"]
[BlackElo "2475"]
[Result "1-0"]
[Round "11"]
[TimeControl "180+2"]
[Date "2023.03.28"]
[WhiteClock "0:01:28"]
[BlackClock "0:01:20"]

1. d4 {[%clk 0:03:00]}  d5 {[%clk 0:02:57]} 2. c4 {[%clk 0:03:01]}  e6 {[%clk 0:02:55]} 3. Nc3 {[%clk 0:03:00]}  Nf6 {[%clk 0:02:55]} 4. cxd5 {[%clk 0:03:00]}  exd5 {[%clk 0:02:56]} 5. Bg5 {[%clk 0:02:54]}  c6 {[%clk 0:02:57]} 6. e3 {[%clk 0:02:54]}  h6 {[%clk 0:02:56]} 7. Bh4 {[%clk 0:02:54]}  Bd6 {[%clk 0:02:56]} 8. Bd3 {[%clk 0:02:53]}  O-O {[%clk 0:02:56]} 9. Nf3 {[%clk 0:02:52]}  Re8 {[%clk 0:02:56]} 10. Qc2 {[%clk 0:02:50]}  Bg4 {[%clk 0:02:55]} 11. O-O-O {[%clk 0:02:48]}  b5 {[%clk 0:02:54]} 12. Kb1 {[%clk 0:02:45]}  a5 {[%clk 0:02:52]} 13. Rdg1 {[%clk 0:02:44]}  a4 {[%clk 0:02:48]} 14. h3 {[%clk 0:02:44]}  Bd7 {[%clk 0:02:48]} 15. g4 {[%clk 0:02:43]}  Na6 {[%clk 0:02:05]} 16. g5 {[%clk 0:02:15]}  hxg5 {[%clk 0:02:03]} 17. Rxg5 {[%clk 0:01:41]}  Nb4 {[%clk 0:02:00]} 18. Qd2 {[%clk 0:01:42]}  Nxd3 {[%clk 0:01:54]} 19. Qxd3 {[%clk 0:01:42]}  b4 {[%clk 0:01:54]} 20. Rhg1 {[%clk 0:01:32]}  bxc3 {[%clk 0:01:26]} 21. Rxg7+ {[%clk 0:01:31]}  Kf8 {[%clk 0:01:27]} 22. Rxf7+ {[%clk 0:01:28]}  Kxf7 {[%clk 0:01:22]} 23. Qg6+ {[%clk 0:01:29]}  Ke6 {[%clk 0:01:19]} 24. Ng5+ {[%clk 0:01:29]}  Ke7 {[%clk 0:01:20]} 25. Qf7# {[%clk 0:01:28]} 1-0


[Site "https://www.chess.com"]

[Event "Titled Tuesday Blitz March 28 Early 2023"]
[White "Novikova, Galina"]
[Black "Tanmay Jain"]
[WhiteFideId "4157095"]
[BlackFideId "45015481"]
[WhiteElo "1953"]
[BlackElo "2032"]
[Result "0-1"]
[Round "11"]
[TimeControl "180+2"]
[Date "2023.03.28"]
[WhiteClock "0:00:04"]
[BlackClock "0:00:11"]

1. e4 {[%clk 0:03:00]}  e5 {[%clk 0:02:51]} 2. Nf3 {[%clk 0:03:00]}  Nc6 {[%clk 0:02:51]} 3. Bc4 {[%clk 0:03:00]}  Nf6 {[%clk 0:02:51]} 4. Ng5 {[%clk 0:03:00]}  d5 {[%clk 0:02:51]} 5. exd5 {[%clk 0:03:01]}  Na5 {[%clk 0:02:52]} 6. Bb5+ {[%clk 0:03:01]}  c6 {[%clk 0:02:53]} 7. dxc6 {[%clk 0:03:02]}  bxc6 {[%clk 0:02:54]} 8. Bd3 {[%clk 0:03:03]}  Be7 {[%clk 0:02:52]} 9. O-O {[%clk 0:03:02]}  O-O {[%clk 0:02:52]} 10. Ne4 {[%clk 0:03:02]}  Nxe4 {[%clk 0:02:52]} 11. Bxe4 {[%clk 0:03:02]}  f5 {[%clk 0:02:52]} 12. Bf3 {[%clk 0:03:00]}  e4 {[%clk 0:02:53]} 13. Be2 {[%clk 0:03:00]}  Bd6 {[%clk 0:02:53]} 14. d3 {[%clk 0:02:56]}  Nb7 {[%clk 0:02:25]} 15. Nc3 {[%clk 0:02:52]}  Nc5 {[%clk 0:02:10]} 16. dxe4 {[%clk 0:02:42]}  fxe4 {[%clk 0:02:08]} 17. Be3 {[%clk 0:02:39]}  Qe7 {[%clk 0:02:07]} 18. Qd4 {[%clk 0:02:11]}  Bf5 {[%clk 0:01:59]} 19. Rad1 {[%clk 0:02:02]}  Rad8 {[%clk 0:01:54]} 20. Kh1 {[%clk 0:01:08]}  Rf6 {[%clk 0:00:47]} 21. Bf4 {[%clk 0:00:54]}  Nb7 {[%clk 0:00:44]} 22. Bxd6 {[%clk 0:00:36]}  Nxd6 {[%clk 0:00:41]} 23. Qe3 {[%clk 0:00:29]}  Rh6 {[%clk 0:00:40]} 24. Qg3 {[%clk 0:00:18]}  Rg6 {[%clk 0:00:37]} 25. Qe3 {[%clk 0:00:16]}  Rf8 {[%clk 0:00:35]} 26. Rd4 {[%clk 0:00:11]}  Qh4 {[%clk 0:00:22]} 27. g3 {[%clk 0:00:07]}  Qh3 {[%clk 0:00:20]} 28. Rfd1 {[%clk 0:00:04]}  Rh6 {[%clk 0:00:20]} 29. Qxh6 {[%clk 0:00:03]}  Qxh6 {[%clk 0:00:21]} 30. Rxd6 {[%clk 0:00:04]}  Qg5 {[%clk 0:00:22]} 31. R6d4 {[%clk 0:00:02]}  Re8 {[%clk 0:00:21]} 32. Kg1 {[%clk 0:00:02]}  e3 {[%clk 0:00:20]} 33. f4 {[%clk 0:00:03]}  Qf6 {[%clk 0:00:20]} 34. Rd6 {[%clk 0:00:03]}  Qf7 {[%clk 0:00:20]} 35. R6d4 {[%clk 0:00:02]}  c5 {[%clk 0:00:19]} 36. Rd6 {[%clk 0:00:02]}  Be6 {[%clk 0:00:19]} 37. R6d3 {[%clk 0:00:01]}  Bc4 {[%clk 0:00:18]} 38. Rd6 {[%clk 0:00:02]}  Bxe2 {[%clk 0:00:18]} 39. Nxe2 {[%clk 0:00:02]}  h6 {[%clk 0:00:19]} 40. Nc3 {[%clk 0:00:02]}  e2 {[%clk 0:00:18]} 41. Re1 {[%clk 0:00:03]}  Qc4 {[%clk 0:00:18]} 42. Rd2 {[%clk 0:00:03]}  Qb4 {[%clk 0:00:18]} 43. Rdxe2 {[%clk 0:00:02]}  Rxe2 {[%clk 0:00:19]} 44. Rxe2 {[%clk 0:00:03]}  Qxb2 {[%clk 0:00:20]} 45. Ne4 {[%clk 0:00:03]}  Qxa2 {[%clk 0:00:19]} 46. Kf2 {[%clk 0:00:04]}  Qc4 {[%clk 0:00:19]} 47. g4 {[%clk 0:00:04]}  a5 {[%clk 0:00:18]} 48. f5 {[%clk 0:00:04]}  a4 {[%clk 0:00:18]} 49. f6 {[%clk 0:00:05]}  gxf6 {[%clk 0:00:18]} 50. Nxf6+ {[%clk 0:00:05]}  Kf7 {[%clk 0:00:19]} 51. Ne4 {[%clk 0:00:05]}  Kg6 {[%clk 0:00:19]} 52. h4 {[%clk 0:00:05]}  a3 {[%clk 0:00:18]} 53. h5+ {[%clk 0:00:06]}  Kg7 {[%clk 0:00:18]} 54. c3 {[%clk 0:00:03]}  a2 {[%clk 0:00:18]} 55. Nd6 {[%clk 0:00:03]}  Qb3 {[%clk 0:00:12]} 56. Re7+ {[%clk 0:00:02]}  Kf6 {[%clk 0:00:12]} 57. Ra7 {[%clk 0:00:02]}  a1=Q {[%clk 0:00:12]} 58. Kf3 {[%clk 0:00:02]}  Qaxc3+ {[%clk 0:00:11]} 59. Kf4 {[%clk 0:00:02]}  Qbb4+ {[%clk 0:00:11]} 60. Ne4+ {[%clk 0:00:02]}  Ke6 {[%clk 0:00:10]} 61. Ra6+ {[%clk 0:00:02]}  Kd7 {[%clk 0:00:10]} 62. Rd6+ {[%clk 0:00:02]}  Kc7 {[%clk 0:00:10]} 63. Rxh6 {[%clk 0:00:02]}  Qc1+ {[%clk 0:00:09]} 64. Kf5 {[%clk 0:00:01]}  Qxh6 {[%clk 0:00:10]} 65. g5 {[%clk 0:00:02]}  Qc6 {[%clk 0:00:10]} 66. Nf6 {[%clk 0:00:02]}  Qb1+ {[%clk 0:00:07]} 67. Kf4 {[%clk 0:00:01]}  c4 {[%clk 0:00:08]} 68. h6 {[%clk 0:00:02]}  c3 {[%clk 0:00:08]} 69. h7 {[%clk 0:00:02]}  Qxh7 {[%clk 0:00:07]} 70. Nxh7 {[%clk 0:00:03]}  c2 {[%clk 0:00:08]} 71. Kf5 {[%clk 0:00:03]}  c1=Q {[%clk 0:00:09]} 72. g6 {[%clk 0:00:03]}  Q1c2+ {[%clk 0:00:10]} 73. Kg5 {[%clk 0:00:04]}  Q2xg6+ {[%clk 0:00:11]} 0-1


[Site "https://www.chess.com"]